[Event "*** Titled Tuesday Blitz"]
[Site "Chess.com"]
[Date "2020.04.14"]
[Round "3"]
[White "ChessicallyInclined"]
[Black "Gordima"]
[Result "1-0"]
[WhiteElo "2591"]
[BlackElo "2760"]
[TimeControl "180+1"]
[EndTime "10:28:00 PDT"]
[Termination "ChessicallyInclined won on time"]

1. d4 {[%clk 0:03:00.9]} 1... Nf6 {[%clk 0:02:58.8]} 2. c4 {[%clk 0:03:00]} 2...
e6 {[%clk 0:02:59]} 3. Nc3 {[%clk 0:02:59.9]} 3... Bb4 {[%clk 0:02:59.3]} 4. e3
{[%clk 0:02:59.5]} 4... O-O {[%clk 0:02:58.7]} 5. Ne2 {[%clk 0:02:59.6]} 5...
Re8 {[%clk 0:02:56.1]} 6. a3 {[%clk 0:02:59.9]} 6... Bf8 {[%clk 0:02:56.1]} 7.
Ng3 {[%clk 0:03:00.3]} 7... d6 {[%clk 0:02:52.6]} 8. Be2 {[%clk 0:02:58.9]} 8...
e5 {[%clk 0:02:52.1]} 9. O-O {[%clk 0:02:58.9]} 9... c6 {[%clk 0:02:52]} 10. b4
{[%clk 0:02:54.2]} 10... e4 {[%clk 0:02:42.1]} 11. d5 {[%clk 0:02:47.4]} 11...
c5 {[%clk 0:02:28.6]} 12. bxc5 {[%clk 0:02:37.7]} 12... dxc5 {[%clk 0:02:28.5]}
13. Qc2 {[%clk 0:02:37.9]} 13... Bd6 {[%clk 0:01:45.9]} 14. Ncxe4 {[%clk
0:02:26.9]} 14... Nxe4 {[%clk 0:01:44.1]} 15. Nxe4 {[%clk 0:02:27.8]} 15... Bf5
{[%clk 0:01:37.6]} 16. Bd3 {[%clk 0:02:08.6]} 16... Bxe4 {[%clk 0:01:20.1]} 17.
Bxe4 {[%clk 0:02:07.8]} 17... Bxh2+ {[%clk 0:01:12]} 18. Kxh2 {[%clk 0:02:07.3]}
18... Qh4+ {[%clk 0:01:12.3]} 19. Kg1 {[%clk 0:02:06.8]} 19... Qxe4 {[%clk
0:01:07.5]} 20. Qc3 {[%clk 0:01:45.1]} 20... Nd7 {[%clk 0:00:47.7]} 21. f3
{[%clk 0:01:42.6]} 21... Qe5 {[%clk 0:00:47.9]} 22. Qb3 {[%clk 0:01:25.5]} 22...
Qxa1 {[%clk 0:00:19.9]} 23. Bb2 {[%clk 0:01:24.9]} 23... Rxe3 {[%clk 0:00:18.8]}
24. Qxb7 {[%clk 0:01:21.8]} 24... Rb8 {[%clk 0:00:08.7]} 25. Qxb8+ {[%clk
0:01:16.6]} 25... Nxb8 {[%clk 0:00:09.6]} 26. Rxa1 {[%clk 0:01:05.7]} 26... Nd7
{[%clk 0:00:09.4]} 27. Kf2 {[%clk 0:01:03]} 27... Rb3 {[%clk 0:00:09.4]} 28. Ra2
{[%clk 0:00:52.3]} 28... Nb6 {[%clk 0:00:06.4]} 29. Bc1 {[%clk 0:00:49.2]} 29...
Nxc4 {[%clk 0:00:05.1]} 30. Rc2 {[%clk 0:00:48.1]} 30... Ne5 {[%clk 0:00:03.9]}
31. d6 {[%clk 0:00:28.4]} 31... Nd7 {[%clk 0:00:03.9]} 32. Re2 {[%clk
0:00:25.6]} 32... g6 {[%clk 0:00:01.7]} 33. Bh6 {[%clk 0:00:23.8]} 33... f6
{[%clk 0:00:01.2]} 34. Re7 {[%clk 0:00:23.6]} 1-0

[Event "*** Titled Tuesday Blitz"]
[Site "Chess.com"]
[Date "2020.04.14"]
[Round "3"]
[White "Treacherous_horse64"]
[Black "Korchmar_Vasiliy"]
[Result "0-1"]
[WhiteElo "2215"]
[BlackElo "2522"]
[TimeControl "180+1"]
[EndTime "10:28:00 PDT"]
[Termination "Korchmar_Vasiliy won by resignation"]

1. d4 {[%clk 0:03:00.9]} 1... Nf6 {[%clk 0:02:59.7]} 2. Nf3 {[%clk 0:03:01.1]}
2... d5 {[%clk 0:02:59.7]} 3. e3 {[%clk 0:03:00.8]} 3... c5 {[%clk 0:02:58.5]}
4. dxc5 {[%clk 0:03:01.7]} 4... Qa5+ {[%clk 0:02:57.4]} 5. c3 {[%clk 0:03:01.5]}
5... Qxc5 {[%clk 0:02:57.6]} 6. b4 {[%clk 0:03:02.4]} 6... Qc7 {[%clk 0:02:57]}
7. Bb2 {[%clk 0:03:02.8]} 7... Bg4 {[%clk 0:02:52]} 8. Nbd2 {[%clk 0:02:58.5]}
8... e5 {[%clk 0:02:45.6]} 9. h3 {[%clk 0:02:50.7]} 9... Bh5 {[%clk 0:02:45.3]}
10. g4 {[%clk 0:02:48.3]} 10... Bg6 {[%clk 0:02:44.9]} 11. Rc1 {[%clk 0:02:18]}
11... Nbd7 {[%clk 0:02:37.1]} 12. Qb3 {[%clk 0:02:05.6]} 12... a5 {[%clk
0:02:29.7]} 13. a3 {[%clk 0:02:04.5]} 13... Qb6 {[%clk 0:01:52]} 14. b5 {[%clk
0:01:44.1]} 14... Nc5 {[%clk 0:01:42.4]} 15. Qa2 {[%clk 0:01:43.7]} 15... Bd6
{[%clk 0:01:34.8]} 16. c4 {[%clk 0:01:36.6]} 16... O-O {[%clk 0:01:17.8]} 17.
cxd5 {[%clk 0:01:29]} 17... Nd3+ {[%clk 0:00:58.6]} 18. Bxd3 {[%clk 0:01:25.7]}
18... Bxd3 {[%clk 0:00:59.5]} 19. Nc4 {[%clk 0:01:18.9]} 19... Qd8 {[%clk
0:00:53.8]} 20. Nfxe5 {[%clk 0:01:09.2]} 20... Bxe5 {[%clk 0:00:44.9]} 21. Nxe5
{[%clk 0:01:07.9]} 21... Bxb5 {[%clk 0:00:45.8]} 22. a4 {[%clk 0:00:53.3]} 22...
Ba6 {[%clk 0:00:45.3]} 23. Rd1 {[%clk 0:00:50.5]} 23... Re8 {[%clk 0:00:39.5]}
24. g5 {[%clk 0:00:46.2]} 24... Ne4 {[%clk 0:00:36.6]} 25. Rg1 {[%clk
0:00:39.3]} 25... Qd6 {[%clk 0:00:33.8]} 26. Qb3 {[%clk 0:00:25.3]} 26... Rxe5
{[%clk 0:00:31.3]} 27. Bxe5 {[%clk 0:00:23.9]} 27... Qxe5 {[%clk 0:00:32.2]} 28.
f3 {[%clk 0:00:18.8]} 28... Qh2 {[%clk 0:00:28.5]} 29. Rf1 {[%clk 0:00:14.2]}
29... Qg3+ {[%clk 0:00:27.2]} 0-1

[Event "*** Titled Tuesday Blitz"]
[Site "Chess.com"]
[Date "2020.04.14"]
[Round "3"]
[White "Rogue_King"]
[Black "yawnpawn"]
[Result "1-0"]
[WhiteElo "2264"]
[BlackElo "1744"]
[TimeControl "180+1"]
[EndTime "10:28:00 PDT"]
[Termination "Rogue_King won by resignation"]

1. d4 {[%clk 0:03:00.9]} 1... Nf6 {[%clk 0:02:59]} 2. c4 {[%clk 0:02:53.6]} 2...
g6 {[%clk 0:02:58.6]} 3. Nc3 {[%clk 0:02:29.2]} 3... Bg7 {[%clk 0:02:57.4]} 4.
e4 {[%clk 0:02:28.8]} 4... d6 {[%clk 0:02:57.2]} 5. Be2 {[%clk 0:02:29.1]} 5...
O-O {[%clk 0:02:55.2]} 6. Nf3 {[%clk 0:02:30]} 6... Nc6 {[%clk 0:02:54.1]} 7.
O-O {[%clk 0:02:30.9]} 7... e5 {[%clk 0:02:53.9]} 8. d5 {[%clk 0:02:30.9]} 8...
Ne7 {[%clk 0:02:52.4]} 9. Ne1 {[%clk 0:02:31.3]} 9... Ne8 {[%clk 0:02:46.9]} 10.
Be3 {[%clk 0:02:20.9]} 10... f5 {[%clk 0:02:44.4]} 11. f3 {[%clk 0:02:21.1]}
11... a6 {[%clk 0:02:38]} 12. c5 {[%clk 0:02:18.8]} 12... f4 {[%clk 0:02:37.1]}
13. Bf2 {[%clk 0:02:17.8]} 13... h5 {[%clk 0:02:21]} 14. a4 {[%clk 0:02:14.8]}
14... Kh7 {[%clk 0:02:06]} 15. Nd3 {[%clk 0:02:13.4]} 15... Ng8 {[%clk
0:02:03.1]} 16. a5 {[%clk 0:02:05.4]} 16... h4 {[%clk 0:02:00.1]} 17. h3 {[%clk
0:01:56.3]} 17... Qg5 {[%clk 0:01:49.1]} 18. Kh2 {[%clk 0:01:54.7]} 18... Bf6
{[%clk 0:01:20.2]} 19. cxd6 {[%clk 0:01:42.7]} 19... cxd6 {[%clk 0:01:19.6]} 20.
Na4 {[%clk 0:01:36.8]} 20... Bd8 {[%clk 0:01:12.4]} 21. Nb6 {[%clk 0:01:22.6]}
21... Rb8 {[%clk 0:01:08.8]} 22. Rc1 {[%clk 0:01:21.5]} 22... Nc7 {[%clk
0:00:46.2]} 23. Qe1 {[%clk 0:01:09.4]} 23... Rf7 {[%clk 0:00:29.8]} 24. Qb4
{[%clk 0:01:02.7]} 24... Qe7 {[%clk 0:00:20.5]} 25. Nxc8 {[%clk 0:01:00.5]}
25... Rxc8 {[%clk 0:00:20.2]} 26. Qxb7 {[%clk 0:01:00.1]} 26... Qd7 {[%clk
0:00:19.4]} 27. Bb6 {[%clk 0:00:41.1]} 27... Nf6 {[%clk 0:00:17]} 28. Nb4 {[%clk
0:00:30.6]} 28... Nh5 {[%clk 0:00:13]} 29. Nxa6 {[%clk 0:00:21.9]} 29... Qe7
{[%clk 0:00:06.4]} 30. Qxc8 {[%clk 0:00:19.7]} 30... Qg5 {[%clk 0:00:05.8]} 31.
Qg4 {[%clk 0:00:18.9]} 1-0

[Event "*** Titled Tuesday Blitz"]
[Site "Chess.com"]
[Date "2020.04.14"]
[Round "3"]
[White "kirillshevchenko"]
[Black "karinachess1"]
[Result "1-0"]
[WhiteElo "2861"]
[BlackElo "2489"]
[TimeControl "180+1"]
[EndTime "10:28:01 PDT"]
[Termination "kirillshevchenko won on time"]

1. e4 {[%clk 0:03:00.9]} 1... c5 {[%clk 0:02:58.2]} 2. Nf3 {[%clk 0:03:00.7]}
2... e6 {[%clk 0:02:57.8]} 3. d4 {[%clk 0:03:00.6]} 3... cxd4 {[%clk 0:02:57.8]}
4. Nxd4 {[%clk 0:03:01.5]} 4... a6 {[%clk 0:02:57.3]} 5. Bd3 {[%clk 0:03:01.3]}
5... Bc5 {[%clk 0:02:56.6]} 6. Nb3 {[%clk 0:03:01.1]} 6... Ba7 {[%clk
0:02:56.3]} 7. c4 {[%clk 0:02:49.8]} 7... Ne7 {[%clk 0:02:48.1]} 8. Nc3 {[%clk
0:02:49.4]} 8... d6 {[%clk 0:02:43.9]} 9. Qe2 {[%clk 0:02:48.5]} 9... e5 {[%clk
0:02:40]} 10. O-O {[%clk 0:02:46.3]} 10... O-O {[%clk 0:02:35.6]} 11. Be3 {[%clk
0:02:46.1]} 11... Bxe3 {[%clk 0:02:35.3]} 12. Qxe3 {[%clk 0:02:47]} 12... Be6
{[%clk 0:02:35.7]} 13. Rfd1 {[%clk 0:02:37.9]} 13... Nbc6 {[%clk 0:02:22.3]} 14.
Rac1 {[%clk 0:02:35.3]} 14... Qb8 {[%clk 0:01:58.9]} 15. Be2 {[%clk 0:02:31.3]}
15... Rd8 {[%clk 0:01:57.9]} 16. Rd2 {[%clk 0:02:29.4]} 16... a5 {[%clk
0:01:42.3]} 17. Nb5 {[%clk 0:02:15.5]} 17... a4 {[%clk 0:01:41.5]} 18. Na1
{[%clk 0:02:15.5]} 18... Na5 {[%clk 0:01:04.8]} 19. b4 {[%clk 0:01:54.5]} 19...
axb3 {[%clk 0:01:01.8]} 20. axb3 {[%clk 0:01:55.4]} 20... Nac6 {[%clk
0:00:44.6]} 21. Nc2 {[%clk 0:01:52.1]} 21... Ng6 {[%clk 0:00:33]} 22. g3 {[%clk
0:01:48.7]} 22... Ra2 {[%clk 0:00:26.1]} 23. Rcd1 {[%clk 0:01:44.8]} 23... h6
{[%clk 0:00:18.3]} 24. Qc3 {[%clk 0:01:33.4]} 24... Nge7 {[%clk 0:00:13]} 25.
Bf1 {[%clk 0:01:03.1]} 25... Bg4 {[%clk 0:00:12]} 26. f3 {[%clk 0:01:01.2]}
26... Be6 {[%clk 0:00:11.5]} 27. Ne3 {[%clk 0:01:01.3]} 27... Rxd2 {[%clk
0:00:10.5]} 28. Rxd2 {[%clk 0:00:58.6]} 28... g6 {[%clk 0:00:09.6]} 29. Ra2
{[%clk 0:00:50]} 29... Qc8 {[%clk 0:00:06.1]} 30. Qd2 {[%clk 0:00:49.2]} 30...
Qd7 {[%clk 0:00:05.7]} 31. Nd5 {[%clk 0:00:47.8]} 31... Bxd5 {[%clk 0:00:05.9]}
32. cxd5 {[%clk 0:00:48.3]} 32... Nb8 {[%clk 0:00:03.2]} 33. Qb4 {[%clk
0:00:48.3]} 33... Nc8 {[%clk 0:00:02.7]} 34. Rc2 {[%clk 0:00:48.1]} 34... Na6
{[%clk 0:00:02.6]} 35. Qa5 {[%clk 0:00:45.8]} 35... Rf8 {[%clk 0:00:01.3]} 36.
Qd2 {[%clk 0:00:40.7]} 36... f5 {[%clk 0:00:01.3]} 37. Qxh6 {[%clk 0:00:40.6]}
1-0

[Event "*** Titled Tuesday Blitz"]
[Site "Chess.com"]
[Date "2020.04.14"]
[Round "3"]
[White "TheFireChess"]
[Black "MikaelyanArman"]
[Result "0-1"]
[WhiteElo "2482"]
[BlackElo "2820"]
[TimeControl "180+1"]
[EndTime "10:28:02 PDT"]
[Termination "MikaelyanArman won on time"]

1. e4 {[%clk 0:02:56.5]} 1... d5 {[%clk 0:02:59.3]} 2. exd5 {[%clk 0:02:56.1]}
2... Qxd5 {[%clk 0:03:00.2]} 3. c4 {[%clk 0:02:56.5]} 3... Qe6+ {[%clk
0:02:50.1]} 4. Qe2 {[%clk 0:02:55.8]} 4... Nc6 {[%clk 0:02:48.8]} 5. Nf3 {[%clk
0:02:52.8]} 5... Nf6 {[%clk 0:02:46.7]} 6. d4 {[%clk 0:02:47.9]} 6... Qxe2+
{[%clk 0:02:34.1]} 7. Bxe2 {[%clk 0:02:48.8]} 7... Bg4 {[%clk 0:02:30.2]} 8. d5
{[%clk 0:02:41]} 8... Nb4 {[%clk 0:02:24.9]} 9. Na3 {[%clk 0:02:36.7]} 9... e6
{[%clk 0:02:23.6]} 10. dxe6 {[%clk 0:02:31.8]} 10... Bxe6 {[%clk 0:02:21.5]} 11.
O-O {[%clk 0:02:32.2]} 11... O-O-O {[%clk 0:02:14.7]} 12. Bf4 {[%clk 0:02:20.2]}
12... Bc5 {[%clk 0:02:05.8]} 13. Nb5 {[%clk 0:02:10.5]} 13... c6 {[%clk
0:02:03.6]} 14. Nc3 {[%clk 0:02:05.4]} 14... Nh5 {[%clk 0:01:48.6]} 15. Bg3
{[%clk 0:01:47.4]} 15... Nxg3 {[%clk 0:01:43.4]} 16. hxg3 {[%clk 0:01:48.3]}
16... Rhe8 {[%clk 0:01:39.6]} 17. a3 {[%clk 0:01:38.9]} 17... Nc2 {[%clk
0:01:39.6]} 18. Rac1 {[%clk 0:01:35.6]} 18... Nd4 {[%clk 0:01:39]} 19. Nxd4
{[%clk 0:01:25.9]} 19... Bxd4 {[%clk 0:01:39.9]} 20. b3 {[%clk 0:01:15.7]} 20...
Bf5 {[%clk 0:01:37.4]} 21. Bf3 {[%clk 0:01:12.2]} 21... g5 {[%clk 0:01:24]} 22.
g4 {[%clk 0:01:05.2]} 22... Bg6 {[%clk 0:01:22.8]} 23. b4 {[%clk 0:01:02.4]}
23... Bd3 {[%clk 0:01:10.2]} 24. Rfd1 {[%clk 0:00:53.4]} 24... Bxc4 {[%clk
0:01:10.1]} 25. Ne4 {[%clk 0:00:52]} 25... Bb3 {[%clk 0:01:07.6]} 26. Rd3 {[%clk
0:00:45.5]} 26... Ba4 {[%clk 0:00:57.6]} 27. g3 {[%clk 0:00:13.7]} 27... h6
{[%clk 0:00:47.5]} 28. Rc4 {[%clk 0:00:11.9]} 28... Be5 {[%clk 0:00:40.2]} 29.
Rxd8+ {[%clk 0:00:12.4]} 29... Rxd8 {[%clk 0:00:41.1]} 30. Nc5 {[%clk
0:00:12.5]} 30... Bb5 {[%clk 0:00:33.1]} 31. Re4 {[%clk 0:00:12.2]} 31... f6
{[%clk 0:00:33.5]} 32. Re3 {[%clk 0:00:09.9]} 32... Rd2 {[%clk 0:00:28.6]} 33.
Ne4 {[%clk 0:00:04]} 33... Ra2 {[%clk 0:00:27.2]} 0-1

[Event "*** Titled Tuesday Blitz"]
[Site "Chess.com"]
[Date "2020.04.14"]
[Round "3"]
[White "Blitzking642"]
[Black "Raja3401"]
[Result "1-0"]
[WhiteElo "2399"]
[BlackElo "2660"]
[TimeControl "180+1"]
[EndTime "10:28:02 PDT"]
[Termination "Blitzking642 won by checkmate"]

1. d4 {[%clk 0:03:00.9]} 1... Nf6 {[%clk 0:02:59.2]} 2. c4 {[%clk 0:03:01.2]}
2... e6 {[%clk 0:03:00.1]} 3. Nc3 {[%clk 0:03:00]} 3... Bb4 {[%clk 0:03:00.4]}
4. Qc2 {[%clk 0:03:00.2]} 4... O-O {[%clk 0:02:59.7]} 5. a3 {[%clk 0:03:00.3]}
5... Bxc3+ {[%clk 0:03:00]} 6. Qxc3 {[%clk 0:03:01.2]} 6... d5 {[%clk
0:02:55.4]} 7. Nf3 {[%clk 0:02:54.8]} 7... dxc4 {[%clk 0:02:53.8]} 8. Qxc4
{[%clk 0:02:54.5]} 8... b6 {[%clk 0:02:54.2]} 9. Bf4 {[%clk 0:02:54.6]} 9... Ba6
{[%clk 0:02:31]} 10. Qxc7 {[%clk 0:02:53.4]} 10... Qxc7 {[%clk 0:02:30.7]} 11.
Bxc7 {[%clk 0:02:53.9]} 11... Nbd7 {[%clk 0:02:31.2]} 12. Bf4 {[%clk 0:02:44.1]}
12... Rac8 {[%clk 0:02:29.2]} 13. Nd2 {[%clk 0:02:30.2]} 13... Rc2 {[%clk
0:02:22.4]} 14. Rb1 {[%clk 0:02:29]} 14... Nd5 {[%clk 0:02:17.8]} 15. e4 {[%clk
0:02:03.5]} 15... Bxf1 {[%clk 0:02:03.1]} 16. exd5 {[%clk 0:02:01.2]} 16... Bxg2
{[%clk 0:02:03.5]} 17. Rg1 {[%clk 0:01:57.6]} 17... Bxd5 {[%clk 0:02:02.8]} 18.
Bh6 {[%clk 0:01:55.9]} 18... g6 {[%clk 0:01:52.9]} 19. Bxf8 {[%clk 0:01:55.5]}
19... Kxf8 {[%clk 0:01:53.1]} 20. Kd1 {[%clk 0:01:50.5]} 20... Rc6 {[%clk
0:01:52.6]} 21. Rc1 {[%clk 0:01:50.4]} 21... Rd6 {[%clk 0:01:52.7]} 22. Rc7
{[%clk 0:01:46.6]} 22... a5 {[%clk 0:01:48.9]} 23. Ke2 {[%clk 0:01:44.7]} 23...
Bc6 {[%clk 0:01:46.9]} 24. Nc4 {[%clk 0:01:25.6]} 24... Bb5 {[%clk 0:01:43.4]}
25. Ke3 {[%clk 0:01:04.7]} 25... Rd5 {[%clk 0:01:35.5]} 26. Rc1 {[%clk
0:00:50.6]} 26... Ke8 {[%clk 0:01:22.6]} 27. f4 {[%clk 0:00:49.6]} 27... Kd8
{[%clk 0:01:17.2]} 28. Ne5 {[%clk 0:00:45.8]} 28... f6 {[%clk 0:01:10.6]} 29.
Nxd7 {[%clk 0:00:24.2]} 29... Bxd7 {[%clk 0:01:11.5]} 30. Rb7 {[%clk 0:00:23.9]}
30... Rb5 {[%clk 0:01:11.5]} 31. Rc2 {[%clk 0:00:24.1]} 31... Rb3+ {[%clk
0:01:09.1]} 32. Kf2 {[%clk 0:00:23]} 32... Rd3 {[%clk 0:01:08.3]} 33. Rc4 {[%clk
0:00:20.4]} 33... Rd2+ {[%clk 0:01:07.6]} 34. Ke3 {[%clk 0:00:19.8]} 34... Rxb2
{[%clk 0:01:07.8]} 35. Rcc7 {[%clk 0:00:19.9]} 35... Bc8 {[%clk 0:01:07.7]} 36.
Ra7 {[%clk 0:00:18.4]} 36... Rb3+ {[%clk 0:01:06.7]} 37. Ke4 {[%clk 0:00:15.7]}
37... Ba6 {[%clk 0:00:51.7]} 38. Rxh7 {[%clk 0:00:12.7]} 38... Bb5 {[%clk
0:00:26.6]} 39. Ra8# {[%clk 0:00:11]} 1-0

[Event "*** Titled Tuesday Blitz"]
[Site "Chess.com"]
[Date "2020.04.14"]
[Round "3"]
[White "rozabaku"]
[Black "Pultis"]
[Result "1-0"]
[WhiteElo "2444"]
[BlackElo "2685"]
[TimeControl "180+1"]
[EndTime "10:28:05 PDT"]
[Termination "rozabaku won by resignation"]

1. d4 {[%clk 0:03:00.3]} 1... Nf6 {[%clk 0:02:59.7]} 2. c4 {[%clk 0:03:00.6]}
2... g6 {[%clk 0:02:59.4]} 3. Nc3 {[%clk 0:03:01]} 3... d5 {[%clk 0:02:59.7]} 4.
cxd5 {[%clk 0:03:01.3]} 4... Nxd5 {[%clk 0:03:00.6]} 5. e4 {[%clk 0:03:02.2]}
5... Nxc3 {[%clk 0:03:01.1]} 6. bxc3 {[%clk 0:03:03.1]} 6... Bg7 {[%clk
0:03:01.8]} 7. Bc4 {[%clk 0:03:04]} 7... c5 {[%clk 0:03:02]} 8. Ne2 {[%clk
0:03:04.7]} 8... O-O {[%clk 0:02:59.6]} 9. Be3 {[%clk 0:03:04.7]} 9... Nc6
{[%clk 0:02:56.9]} 10. O-O {[%clk 0:03:04.6]} 10... b6 {[%clk 0:02:57.5]} 11. f3
{[%clk 0:03:04.3]} 11... Bb7 {[%clk 0:02:54.2]} 12. dxc5 {[%clk 0:03:04.4]}
12... Qc7 {[%clk 0:02:52.7]} 13. cxb6 {[%clk 0:03:04]} 13... axb6 {[%clk
0:02:52.2]} 14. Bb5 {[%clk 0:03:03.5]} 14... Rfd8 {[%clk 0:02:47.4]} 15. Qc1
{[%clk 0:03:03.8]} 15... Ne5 {[%clk 0:02:46.3]} 16. Nd4 {[%clk 0:03:00.4]} 16...
Nc4 {[%clk 0:02:43.2]} 17. Bf2 {[%clk 0:02:57.7]} 17... Ba6 {[%clk 0:02:27.8]}
18. a4 {[%clk 0:02:56.8]} 18... e5 {[%clk 0:02:14.5]} 19. Nc6 {[%clk 0:02:50.9]}
19... Bxb5 {[%clk 0:01:55.6]} 20. axb5 {[%clk 0:02:51.8]} 20... Rxa1 {[%clk
0:01:56.1]} 21. Qxa1 {[%clk 0:02:52.5]} 21... Rd2 {[%clk 0:01:56.1]} 22. Rd1
{[%clk 0:02:35]} 22... Qd6 {[%clk 0:01:51.4]} 23. Rxd2 {[%clk 0:02:26.9]} 23...
Qxd2 {[%clk 0:01:52.3]} 24. Ne7+ {[%clk 0:02:06.1]} 24... Kf8 {[%clk 0:01:52]}
25. Nd5 {[%clk 0:02:06.3]} 25... Bh6 {[%clk 0:01:47.2]} 26. g3 {[%clk
0:01:54.7]} 26... Qe2 {[%clk 0:01:42.5]} 27. Qf1 {[%clk 0:01:32.6]} 27... Qa2
{[%clk 0:01:40.7]} 28. Qh3 {[%clk 0:01:28.7]} 28... Kg7 {[%clk 0:01:26.3]} 29.
Qh4 {[%clk 0:01:26.1]} 29... g5 {[%clk 0:01:05]} 30. Qg4 {[%clk 0:01:26.1]}
30... Qe2 {[%clk 0:00:45.9]} 31. Qf5 {[%clk 0:01:21.7]} 31... Kf8 {[%clk
0:00:30.9]} 32. Qf6 {[%clk 0:01:14.7]} 32... Nd2 {[%clk 0:00:23.9]} 33. Qxh6+
{[%clk 0:01:12.1]} 33... Ke8 {[%clk 0:00:23.9]} 34. Qc6+ {[%clk 0:01:07.3]}
34... Kf8 {[%clk 0:00:23.5]} 35. Qd6+ {[%clk 0:01:01.1]} 35... Kg8 {[%clk
0:00:22.7]} 36. Qd8+ {[%clk 0:00:59]} 36... Kg7 {[%clk 0:00:23]} 37. Qxg5+
{[%clk 0:00:58.4]} 37... Kf8 {[%clk 0:00:23.9]} 38. Qe7+ {[%clk 0:00:57.2]}
38... Kg8 {[%clk 0:00:23]} 39. Nf6+ {[%clk 0:00:44.5]} 39... Kg7 {[%clk
0:00:22]} 40. Nh5+ {[%clk 0:00:44.8]} 40... Kg6 {[%clk 0:00:11]} 41. Qf6+ {[%clk
0:00:44.1]} 1-0

[Event "*** Titled Tuesday Blitz"]
[Site "Chess.com"]
[Date "2020.04.14"]
[Round "3"]
[White "ValeriyGrinev"]
[Black "GMSrinath"]
[Result "1-0"]
[WhiteElo "2607"]
[BlackElo "2784"]
[TimeControl "180+1"]
[EndTime "10:28:08 PDT"]
[Termination "ValeriyGrinev won by resignation"]

1. d4 {[%clk 0:03:00.9]} 1... Nf6 {[%clk 0:02:59.8]} 2. c4 {[%clk 0:03:01.3]}
2... e6 {[%clk 0:02:59.8]} 3. Nc3 {[%clk 0:03:01.7]} 3... Bb4 {[%clk 0:02:59.4]}
4. e3 {[%clk 0:03:02.3]} 4... O-O {[%clk 0:02:58.4]} 5. Bd2 {[%clk 0:03:02.7]}
5... c5 {[%clk 0:02:57.2]} 6. a3 {[%clk 0:03:00.6]} 6... Bxc3 {[%clk 0:02:57]}
7. Bxc3 {[%clk 0:03:01.5]} 7... Ne4 {[%clk 0:02:57.2]} 8. Rc1 {[%clk 0:03:00.6]}
8... Nxc3 {[%clk 0:02:57.5]} 9. Rxc3 {[%clk 0:03:01.5]} 9... b6 {[%clk
0:02:58.4]} 10. Be2 {[%clk 0:02:22.4]} 10... Bb7 {[%clk 0:02:43.3]} 11. Bf3
{[%clk 0:02:22.9]} 11... Qc8 {[%clk 0:02:12.7]} 12. d5 {[%clk 0:02:11.7]} 12...
exd5 {[%clk 0:02:09]} 13. Bxd5 {[%clk 0:02:11.3]} 13... Bxd5 {[%clk 0:02:04.2]}
14. Qxd5 {[%clk 0:02:12.2]} 14... Nc6 {[%clk 0:02:04.6]} 15. Nf3 {[%clk
0:02:12.2]} 15... Qc7 {[%clk 0:02:02.1]} 16. O-O {[%clk 0:02:12]} 16... d6
{[%clk 0:01:59.9]} 17. Rd1 {[%clk 0:02:11.5]} 17... Rad8 {[%clk 0:01:58.6]} 18.
Rcd3 {[%clk 0:02:10]} 18... h6 {[%clk 0:01:42.6]} 19. Qf5 {[%clk 0:02:02.1]}
19... Rfe8 {[%clk 0:01:34.3]} 20. h3 {[%clk 0:01:28.7]} 20... Re6 {[%clk
0:01:30.6]} 21. b3 {[%clk 0:01:27.9]} 21... Rde8 {[%clk 0:01:27.6]} 22. Qf4
{[%clk 0:01:26.7]} 22... Rf6 {[%clk 0:01:23.9]} 23. Qg3 {[%clk 0:01:26.3]} 23...
Ree6 {[%clk 0:01:23.7]} 24. Rd5 {[%clk 0:00:59.8]} 24... a6 {[%clk 0:01:21.3]}
25. Nd2 {[%clk 0:00:50.8]} 25... Qe7 {[%clk 0:01:19.6]} 26. Nb1 {[%clk
0:00:49.7]} 26... Rg6 {[%clk 0:01:14.9]} 27. Qh2 {[%clk 0:00:44]} 27... Ne5
{[%clk 0:01:13.9]} 28. Kh1 {[%clk 0:00:39.7]} 28... Ref6 {[%clk 0:01:11.6]} 29.
f4 {[%clk 0:00:39]} 29... Nc6 {[%clk 0:01:10.8]} 30. R5d3 {[%clk 0:00:39]} 30...
Qe8 {[%clk 0:00:35.3]} 31. Nc3 {[%clk 0:00:37.1]} 31... Ne7 {[%clk 0:00:35.9]}
32. e4 {[%clk 0:00:34.3]} 32... Nc6 {[%clk 0:00:19.7]} 33. f5 {[%clk 0:00:32.4]}
33... Rg5 {[%clk 0:00:19.4]} 34. Nd5 {[%clk 0:00:28.6]} 34... Nd4 {[%clk
0:00:19]} 35. Rxd4 {[%clk 0:00:26]} 35... cxd4 {[%clk 0:00:18.5]} 36. Nxf6+
{[%clk 0:00:26.2]} 36... gxf6 {[%clk 0:00:18.4]} 37. Rxd4 {[%clk 0:00:27.1]}
37... Qe5 {[%clk 0:00:12.4]} 38. Qxe5 {[%clk 0:00:26.1]} 38... dxe5 {[%clk
0:00:13.3]} 39. Rd3 {[%clk 0:00:25.3]} 39... Rg3 {[%clk 0:00:14.2]} 40. Rxg3+
{[%clk 0:00:24.7]} 1-0

[Event "*** Titled Tuesday Blitz"]
[Site "Chess.com"]
[Date "2020.04.14"]
[Round "3"]
[White "profofchess"]
[Black "Algeriano22"]
[Result "0-1"]
[WhiteElo "2399"]
[BlackElo "2626"]
[TimeControl "180+1"]
[EndTime "10:28:08 PDT"]
[Termination "Algeriano22 won by resignation"]

1. e4 {[%clk 0:03:00.9]} 1... e5 {[%clk 0:02:59]} 2. Nf3 {[%clk 0:03:00.4]} 2...
Nc6 {[%clk 0:02:59.1]} 3. Nc3 {[%clk 0:03:00.9]} 3... Nf6 {[%clk 0:02:57.8]} 4.
Bb5 {[%clk 0:03:01.3]} 4... Bd6 {[%clk 0:02:46.8]} 5. d3 {[%clk 0:02:47.7]} 5...
h6 {[%clk 0:02:44.9]} 6. a3 {[%clk 0:02:36]} 6... O-O {[%clk 0:02:41.3]} 7. g4
{[%clk 0:02:31.2]} 7... Bc5 {[%clk 0:02:20.3]} 8. Rg1 {[%clk 0:02:19.1]} 8... d6
{[%clk 0:02:16.6]} 9. g5 {[%clk 0:02:18.1]} 9... Ng4 {[%clk 0:02:16.4]} 10. Rg2
{[%clk 0:02:16.3]} 10... f5 {[%clk 0:02:04.9]} 11. exf5 {[%clk 0:01:44.9]} 11...
Bxf5 {[%clk 0:01:56.7]} 12. gxh6 {[%clk 0:01:29.3]} 12... Nxf2 {[%clk
0:01:43.5]} 13. Bc4+ {[%clk 0:00:36.8]} 13... Kh7 {[%clk 0:01:39.7]} 14. Rxg7+
{[%clk 0:00:19.9]} 14... Kh8 {[%clk 0:01:38.7]} 15. Qe2 {[%clk 0:00:19.7]} 15...
Bg4 {[%clk 0:01:18.7]} 16. Ng5 {[%clk 0:00:19.6]} 16... Qxg5 {[%clk 0:01:12.8]}
17. Bxg5 {[%clk 0:00:18.1]} 17... Bxe2 {[%clk 0:01:12.4]} 18. Nxe2 {[%clk
0:00:17.8]} 18... Nh3 {[%clk 0:01:06.6]} 19. Bd2 {[%clk 0:00:08.6]} 19... Bf2+
{[%clk 0:00:55.8]} 20. Kd1 {[%clk 0:00:08.5]} 20... Bh4 {[%clk 0:00:53.9]} 21.
Ra2 {[%clk 0:00:03.9]} 21... Rf1+ {[%clk 0:00:51.1]} 22. Be1 {[%clk 0:00:04.1]}
22... Bxe1 {[%clk 0:00:50.3]} 23. c3 {[%clk 0:00:03.3]} 23... Bh4+ {[%clk
0:00:42.1]} 24. Kc2 {[%clk 0:00:03.6]} 24... Rf2 {[%clk 0:00:42.5]} 25. Kd2
{[%clk 0:00:02.6]} 25... Bg5+ {[%clk 0:00:40.3]} 26. Ke1 {[%clk 0:00:03]} 26...
Raf8 {[%clk 0:00:37.4]} 27. Ng3 {[%clk 0:00:03.1]} 27... Bxh6 {[%clk 0:00:30.3]}
28. Rg6 {[%clk 0:00:03.4]} 28... Kh7 {[%clk 0:00:29.4]} 29. b4 {[%clk
0:00:03.5]} 29... Kxg6 {[%clk 0:00:28.4]} 30. Rxf2 {[%clk 0:00:02.5]} 30... Nxf2
{[%clk 0:00:26.8]} 0-1